Workbook

Sheet Protocol 1 (5nm)
A1: =IF(Data!$AE$2="DE","Messprotokoll",IF(Data!$AE$2="UK","Measurement protocol",IF(Data!$AE$2="FR","Rapport de mesure","Language Error"))) -> Measurement protocol
A4: =IF(Data!$AE$2 = "DE", "Prüfling:", IF(Data!$AE$2 = "UK","Test object:",IF(Data!$AE$2="FR","Objet testé:","Language Error"))) -> Test object: | N4: =IF(Data!$AE$2="DE","Hersteller",IF(Data!$AE$2="UK","Manufacturer",IF(Data!$AE$2="FR","Fabricant","Language Error"))) -> Manufacturer | BK4: =IF(Data!$AE$2="DE","Messdatei:",IF(Data!$AE$2="UK","Measurement file:",IF(Data!$AE$2="FR","Fichier de mesure:","Language Error"))) -> Measurement file: | CG4: =Data!Q18 -> Measured
N5: =IF(Data!$AE$2="DE","Typ",IF(Data!$AE$2="UK","Type",IF(Data!$AE$2="FR","Type","Language Error"))) -> Type | BK5: =IF(Data!$AE$2="DE","Datum der Messung:",IF(Data!$AE$2="UK","Date of measurement:",IF(Data!$AE$2="FR","Date de mesure:","Language Error"))) -> Date of measurement: | CG5: =Data!Q23 -> 29.09.2021
N6: =IF(Data!$AE$2="DE","Modell",IF(Data!$AE$2="UK","Model",IF(Data!$AE$2="FR","Article","Language Error"))) -> Model | BK6: =IF(Data!$AE$2="DE","Uhrzeit der Messung:",IF(Data!$AE$2="UK","Time of measurement:",IF(Data!$AE$2="FR","Heure de mesure:","Language Error"))) -> Time of measurement: | CG6: =Data!Q21 -> 10:06:00
D23: R1 | I23: = | K23: =Data!K2 -> 96.04 | R23: Ra | W23: = | Y23: =Data!K1 -> 96.81 | AI23: =IF(Data!$AE$2="DE","Beleuchtungsstärke",IF(Data!$AE$2="UK","Illuminance",IF(Data!$AE$2="FR","Illuminance","Language Error"))) -> Illuminance | BN23: =Data!K33 -> 1214.58
D24: R2 | I24: = | K24: =Data!K3 -> 97.94 | R24: Re | W24: = | Y24: =Data!Q27 -> 95.79
D25: R3 | I25: = | K25: =Data!K4 -> 98.67 | R25: GAI | W25: = | Y25: =Data!Q28 -> 83.56 | AI25: =IF(Data!$AE$2 = "DE", "Ähnlichste Farbtemperatur (CCT)", IF(Data!$AE$2 = "UK","Correlated Color Temperature (CCT)",IF(Data!$AE$2="FR","Temp. de couleur proximale (CCT)","Language Error"))) -> Correlated Color Temperature (CCT) | BN25: =Data!K30 -> 5040
D26: R4 | I26: = | K26: =Data!K5 -> 95.47 | AI26: Duv | BN26: =Data!K31 -> 0.0072
D27: R5 | I27: = | K27: =Data!K6 -> 96.13
D28: R6 | I28: = | K28: =Data!K7 -> 97.65
D29: R7 | I29: = | K29: =Data!K8 -> 97.96 | AI29: =IF(AI30="x","CIE1931",IF(AI30="u'","CIE1976",IF(AI30="u","CIE1960",""))) -> CIE1931 | AZ29: =IF(AZ30="x","CIE1931",IF(AZ30="u'","CIE1976",IF(AZ30="u","CIE1960",""))) -> CIE1960 | BQ29: =IF(BQ30="x","CIE1931",IF(BQ30="u'","CIE1976",IF(BQ30="u","CIE1960",""))) -> CIE1976
D30: R8 | I30: = | K30: =Data!K9 -> 94.59 | AI30: =Data!J23 -> x | AL30: = | AN30: =Data!K23 -> 0.3453 | AZ30: =Data!J27 -> u | BC30: = | BE30: =Data!K27 -> 0.206 | BQ30: =Data!J25 -> u' | BT30: = | BV30: =Data!K25 -> 0.206
D31: R9 | I31: = | K31: =Data!K10 -> 85.98 | AI31: =Data!J24 -> y | AL31: = | AN31: =Data!K24 -> 0.3663 | AZ31: =Data!J28 -> v | BC31: = | BE31: =Data!K28 -> 0.3278 | BQ31: =Data!J26 -> v' | BT31: = | BV31: =Data!K26 -> 0.4917
D32: R10 | I32: = | K32: =Data!K11 -> 96.26
D33: R11 | I33: = | K33: =Data!K12 -> 94.96
D34: R12 | I34: = | K34: =Data!K13 -> 95.33
D35: R13 | I35: = | K35: =Data!K14 -> 96.38
D36: R14 | I36: = | K36: =Data!K15 -> 98.98
D37: R15 | I37: = | K37: =Data!K16 -> 94.47
C40: [nm] | I40: mW/m²/nm | Q40: [nm] | W40: mW/m²/nm | AE40: [nm] | AK40: mW/m²/nm | AS40: [nm] | AY40: mW/m²/nm | BG40: [nm] | BM40: mW/m²/nm | BU40: [nm] | CA40: mW/m²/nm | CI40: [nm] | CO40: mW/m²/nm
C41: =Data!G1 -> 380 | I41: =Data!H1 -> 1.747025 | Q41: =Data!G13 -> 440 | W41: =Data!H13 -> 11.43452 | AE41: =Data!G25 -> 500 | AK41: =Data!H25 -> 16.311502 | AS41: =Data!G37 -> 560 | AY41: =Data!H37 -> 17.214663 | BG41: =Data!G49 -> 620 | BM41: =Data!H49 -> 16.033514 | BU41: =Data!G61 -> 680 | CA41: =Data!H61 -> 15.248099 | CI41: =Data!G73 -> 740 | CO41: =Data!H73 -> 17.517563
C42: =Data!G2 -> 385 | I42: =Data!H2 -> 1.955148 | Q42: =Data!G14 -> 445 | W42: =Data!H14 -> 12.582396 | AE42: =Data!G26 -> 505 | AK42: =Data!H26 -> 16.393141 | AS42: =Data!G38 -> 565 | AY42: =Data!H38 -> 16.857655 | BG42: =Data!G50 -> 625 | BM42: =Data!H50 -> 15.820515 | BU42: =Data!G62 -> 685 | CA42: =Data!H62 -> 14.304793 | CI42: =Data!G74 -> 745 | CO42: =Data!H74 -> 18.14922
C43: =Data!G3 -> 390 | I43: =Data!H3 -> 2.342221 | Q43: =Data!G15 -> 450 | W43: =Data!H15 -> 13.676095 | AE43: =Data!G27 -> 510 | AK43: =Data!H27 -> 16.575796 | AS43: =Data!G39 -> 570 | AY43: =Data!H39 -> 16.620396 | BG43: =Data!G51 -> 630 | BM43: =Data!H51 -> 15.616255 | BU43: =Data!G63 -> 690 | CA43: =Data!H63 -> 13.66293 | CI43: =Data!G75 -> 750 | CO43: =Data!H75 -> 18.020264
C44: =Data!G4 -> 395 | I44: =Data!H4 -> 3.044351 | Q44: =Data!G16 -> 455 | W44: =Data!H16 -> 14.475695 | AE44: =Data!G28 -> 515 | AK44: =Data!H28 -> 16.40057 | AS44: =Data!G40 -> 575 | AY44: =Data!H40 -> 16.517523 | BG44: =Data!G52 -> 635 | BM44: =Data!H52 -> 15.801816 | BU44: =Data!G64 -> 695 | CA44: =Data!H64 -> 14.074071 | CI44: =Data!G76 -> 755 | CO44: =Data!H76 -> 15.876513
C45: =Data!G5 -> 400 | I45: =Data!H5 -> 4.478026 | Q45: =Data!G17 -> 460 | W45: =Data!H17 -> 14.90868 | AE45: =Data!G29 -> 520 | AK45: =Data!H29 -> 16.492079 | AS45: =Data!G41 -> 580 | AY45: =Data!H41 -> 16.530363 | BG45: =Data!G53 -> 640 | BM45: =Data!H53 -> 15.81918 | BU45: =Data!G65 -> 700 | CA45: =Data!H65 -> 14.629459 | CI45: =Data!G77 -> 760 | CO45: =Data!H77 -> 12.366732
C46: =Data!G6 -> 405 | I46: =Data!H6 -> 5.953777 | Q46: =Data!G18 -> 465 | W46: =Data!H18 -> 15.160751 | AE46: =Data!G30 -> 525 | AK46: =Data!H30 -> 16.956896 | AS46: =Data!G42 -> 585 | AY46: =Data!H42 -> 16.294405 | BG46: =Data!G54 -> 645 | BM46: =Data!H54 -> 15.523285 | BU46: =Data!G66 -> 705 | CA46: =Data!H66 -> 15.202375 | CI46: =Data!G78 -> 765 | CO46: =Data!H78 -> 12.54877
C47: =Data!G7 -> 410 | I47: =Data!H7 -> 6.929542 | Q47: =Data!G19 -> 470 | W47: =Data!H19 -> 15.360201 | AE47: =Data!G31 -> 530 | AK47: =Data!H31 -> 17.308287 | AS47: =Data!G43 -> 590 | AY47: =Data!H43 -> 15.751006 | BG47: =Data!G55 -> 650 | BM47: =Data!H55 -> 15.154457 | BU47: =Data!G67 -> 710 | CA47: =Data!H67 -> 15.358994 | CI47: =Data!G79 -> 770 | CO47: =Data!H79 -> 15.813597
C48: =Data!G8 -> 415 | I48: =Data!H8 -> 8.16537 | Q48: =Data!G20 -> 475 | W48: =Data!H20 -> 15.666918 | AE48: =Data!G32 -> 535 | AK48: =Data!H32 -> 17.530825 | AS48: =Data!G44 -> 595 | AY48: =Data!H44 -> 15.803174 | BG48: =Data!G56 -> 655 | BM48: =Data!H56 -> 15.060685 | BU48: =Data!G68 -> 715 | CA48: =Data!H68 -> 14.246861 | CI48: =Data!G80 -> 775 | CO48: =Data!H80 -> 17.428082
C49: =Data!G9 -> 420 | I49: =Data!H9 -> 8.866611 | Q49: =Data!G21 -> 480 | W49: =Data!H21 -> 15.932422 | AE49: =Data!G33 -> 540 | AK49: =Data!H33 -> 17.427284 | AS49: =Data!G45 -> 600 | AY49: =Data!H45 -> 16.115704 | BG49: =Data!G57 -> 660 | BM49: =Data!H57 -> 15.393768 | BU49: =Data!G69 -> 720 | CA49: =Data!H69 -> 13.123232 | CI49: =Data!G81 -> 780 | CO49: =Data!H81 -> 17.473745
C50: =Data!G10 -> 425 | I50: =Data!H10 -> 9.140368 | Q50: =Data!G22 -> 485 | W50: =Data!H22 -> 15.754631 | AE50: =Data!G34 -> 545 | AK50: =Data!H34 -> 17.464561 | AS50: =Data!G46 -> 605 | AY50: =Data!H46 -> 16.306223 | BG50: =Data!G58 -> 665 | BM50: =Data!H58 -> 15.698565 | BU50: =Data!G70 -> 725 | CA50: =Data!H70 -> 13.262581
C51: =Data!G11 -> 430 | I51: =Data!H11 -> 9.262589 | Q51: =Data!G23 -> 490 | W51: =Data!H23 -> 15.870525 | AE51: =Data!G35 -> 550 | AK51: =Data!H35 -> 17.491383 | AS51: =Data!G47 -> 610 | AY51: =Data!H47 -> 16.259893 | BG51: =Data!G59 -> 670 | BM51: =Data!H59 -> 15.748817 | BU51: =Data!G71 -> 730 | CA51: =Data!H71 -> 14.46374
C52: =Data!G12 -> 435 | I52: =Data!H12 -> 10.222623 | Q52: =Data!G24 -> 495 | W52: =Data!H24 -> 16.288946 | AE52: =Data!G36 -> 555 | AK52: =Data!H36 -> 17.440125 | AS52: =Data!G48 -> 615 | AY52: =Data!H48 -> 16.116161 | BG52: =Data!G60 -> 675 | BM52: =Data!H60 -> 15.637076 | BU52: =Data!G72 -> 735 | CA52: =Data!H72 -> 16.200191
A54: =IF(Data!$AE$2="DE","Firma",IF(Data!$AE$2="UK","Company",IF(Data!$AE$2="FR","Société","Language Error"))) -> Company
A55: =IF(Data!$AE$2="DE","Adresse",IF(Data!$AE$2="UK","Address",IF(Data!$AE$2="FR","Adresse","Language Error"))) -> Address
A56: =IF(Data!$AE$2="DE","PLZ Ort",IF(Data!$AE$2="UK","ZIP City",IF(Data!$AE$2="FR","Code postal Ville","Language Error"))) -> ZIP City
A58: =IF(Data!$AE$2="DE","Prüfort,",IF(Data!$AE$2="UK","Test location,",IF(Data!$AE$2="FR","Lieu de rapport, ","Language Error"))) -> Test location, | P58: =IF(Data!$AE$2="DE","Datum",IF(Data!$AE$2="UK","Date",IF(Data!$AE$2="FR","Date","Language Error"))) -> Date | BL58: =IF(Data!$AE$2="DE","Vorname, Nachname Prüfer",IF(Data!$AE$2="UK","First, last name of inspector",IF(Data!$AE$2="FR","Prénom Nom du testeur","Language Error"))) -> First, last name of inspector | CG58: =IF(Data!$AE$2="DE","Telefonnummer",IF(Data!$AE$2="UK","Phone number",IF(Data!$AE$2="FR","N° téléphone","Language Error"))) -> Phone number

Sheet Protocol 2 (native)
A1: =IF(Data!$AE$2="DE","Messprotokoll",IF(Data!$AE$2="UK","Measurement protocol",IF(Data!$AE$2="FR","Rapport de mesure","Language Error"))) -> Measurement protocol
A4: =IF(Data!$AE$2 = "DE", "Prüfling:", IF(Data!$AE$2 = "UK","Test object:",IF(Data!$AE$2="FR","Objet testé:","Language Error"))) -> Test object: | N4: ='Protocol 1 (5nm)'!N4:BG4 -> Manufacturer | BK4: =IF(Data!$AE$2="DE","Messdatei:",IF(Data!$AE$2="UK","Measurement file:",IF(Data!$AE$2="FR","Fichier de mesure:","Language Error"))) -> Measurement file: | CG4: =Data!Q18 -> Measured
N5: ='Protocol 1 (5nm)'!N5:BG5 -> Type | BK5: =IF(Data!$AE$2="DE","Datum der Messung:",IF(Data!$AE$2="UK","Date of measurement:",IF(Data!$AE$2="FR","Date de mesure:","Language Error"))) -> Date of measurement: | CG5: =Data!Q23 -> 29.09.2021
N6: ='Protocol 1 (5nm)'!N6:BG6 -> Model | BK6: =IF(Data!$AE$2="DE","Uhrzeit der Messung:",IF(Data!$AE$2="UK","Time of measurement:",IF(Data!$AE$2="FR","Heure de mesure:","Language Error"))) -> Time of measurement: | CG6: =Data!Q21 -> 10:06:00
B22: [nm] | G22: mW/m²/nm | P22: [nm] | U22: mW/m²/nm | AD22: [nm] | AI22: mW/m²/nm | AR22: [nm] | AW22: mW/m²/nm | BF22: [nm] | BK22: mW/m²/nm | BT22: [nm] | BY22: mW/m²/nm | CH22: [nm] | CM22: mW/m²/nm
B23: =Data!$G1 -> 380 | G23: =Data!$H1 -> 1.747025 | P23: =Data!$G32 -> 535 | U23: =Data!$H32 -> 17.530825 | AD23: =IF(Data!$G63="","",Data!$G63) -> 690 | AI23: =IF(Data!$H63="","",Data!$H63) -> 13.66293 | AR23: =IF(Data!$G94="","",Data!$G94) ->  | AW23: =IF(Data!$H94="","",Data!$H94) ->  | BF23: =IF(Data!$G125="","",Data!$G125) ->  | BK23: =IF(Data!$H125="","",Data!$H125) ->  | BT23: =IF(Data!$G156="","",Data!$G156) ->  | BY23: =IF(Data!$H156="","",Data!$H156) ->  | CH23: =IF(Data!$G187="","",Data!$G187) ->  | CM23: =IF(Data!$H187="","",Data!$H187) -> 
B24: =Data!$G2 -> 385 | G24: =Data!$H2 -> 1.955148 | P24: =Data!$G33 -> 540 | U24: =Data!$H33 -> 17.427284 | AD24: =IF(Data!$G64="","",Data!$G64) -> 695 | AI24: =IF(Data!$H64="","",Data!$H64) -> 14.074071 | AR24: =IF(Data!$G95="","",Data!$G95) ->  | AW24: =IF(Data!$H95="","",Data!$H95) ->  | BF24: =IF(Data!$G126="","",Data!$G126) ->  | BK24: =IF(Data!$H126="","",Data!$H126) ->  | BT24: =IF(Data!$G157="","",Data!$G157) ->  | BY24: =IF(Data!$H157="","",Data!$H157) ->  | CH24: =IF(Data!$G188="","",Data!$G188) ->  | CM24: =IF(Data!$H188="","",Data!$H188) -> 
B25: =Data!$G3 -> 390 | G25: =Data!$H3 -> 2.342221 | P25: =Data!$G34 -> 545 | U25: =Data!$H34 -> 17.464561 | AD25: =IF(Data!$G65="","",Data!$G65) -> 700 | AI25: =IF(Data!$H65="","",Data!$H65) -> 14.629459 | AR25: =IF(Data!$G96="","",Data!$G96) ->  | AW25: =IF(Data!$H96="","",Data!$H96) ->  | BF25: =IF(Data!$G127="","",Data!$G127) ->  | BK25: =IF(Data!$H127="","",Data!$H127) ->  | BT25: =IF(Data!$G158="","",Data!$G158) ->  | BY25: =IF(Data!$H158="","",Data!$H158) ->  | CH25: =IF(Data!$G189="","",Data!$G189) ->  | CM25: =IF(Data!$H189="","",Data!$H189) -> 
B26: =Data!$G4 -> 395 | G26: =Data!$H4 -> 3.044351 | P26: =Data!$G35 -> 550 | U26: =Data!$H35 -> 17.491383 | AD26: =IF(Data!$G66="","",Data!$G66) -> 705 | AI26: =IF(Data!$H66="","",Data!$H66) -> 15.202375 | AR26: =IF(Data!$G97="","",Data!$G97) ->  | AW26: =IF(Data!$H97="","",Data!$H97) ->  | BF26: =IF(Data!$G128="","",Data!$G128) ->  | BK26: =IF(Data!$H128="","",Data!$H128) ->  | BT26: =IF(Data!$G159="","",Data!$G159) ->  | BY26: =IF(Data!$H159="","",Data!$H159) ->  | CH26: =IF(Data!$G190="","",Data!$G190) ->  | CM26: =IF(Data!$H190="","",Data!$H190) -> 
B27: =Data!$G5 -> 400 | G27: =Data!$H5 -> 4.478026 | P27: =Data!$G36 -> 555 | U27: =Data!$H36 -> 17.440125 | AD27: =IF(Data!$G67="","",Data!$G67) -> 710 | AI27: =IF(Data!$H67="","",Data!$H67) -> 15.358994 | AR27: =IF(Data!$G98="","",Data!$G98) ->  | AW27: =IF(Data!$H98="","",Data!$H98) ->  | BF27: =IF(Data!$G129="","",Data!$G129) ->  | BK27: =IF(Data!$H129="","",Data!$H129) ->  | BT27: =IF(Data!$G160="","",Data!$G160) ->  | BY27: =IF(Data!$H160="","",Data!$H160) ->  | CH27: =IF(Data!$G191="","",Data!$G191) ->  | CM27: =IF(Data!$H191="","",Data!$H191) -> 
B28: =Data!$G6 -> 405 | G28: =Data!$H6 -> 5.953777 | P28: =Data!$G37 -> 560 | U28: =Data!$H37 -> 17.214663 | AD28: =IF(Data!$G68="","",Data!$G68) -> 715 | AI28: =IF(Data!$H68="","",Data!$H68) -> 14.246861 | AR28: =IF(Data!$G99="","",Data!$G99) ->  | AW28: =IF(Data!$H99="","",Data!$H99) ->  | BF28: =IF(Data!$G130="","",Data!$G130) ->  | BK28: =IF(Data!$H130="","",Data!$H130) ->  | BT28: =IF(Data!$G161="","",Data!$G161) ->  | BY28: =IF(Data!$H161="","",Data!$H161) ->  | CH28: =IF(Data!$G192="","",Data!$G192) ->  | CM28: =IF(Data!$H192="","",Data!$H192) -> 
B29: =Data!$G7 -> 410 | G29: =Data!$H7 -> 6.929542 | P29: =Data!$G38 -> 565 | U29: =Data!$H38 -> 16.857655 | AD29: =IF(Data!$G69="","",Data!$G69) -> 720 | AI29: =IF(Data!$H69="","",Data!$H69) -> 13.123232 | AR29: =IF(Data!$G100="","",Data!$G100) ->  | AW29: =IF(Data!$H100="","",Data!$H100) ->  | BF29: =IF(Data!$G131="","",Data!$G131) ->  | BK29: =IF(Data!$H131="","",Data!$H131) ->  | BT29: =IF(Data!$G162="","",Data!$G162) ->  | BY29: =IF(Data!$H162="","",Data!$H162) ->  | CH29: =IF(Data!$G193="","",Data!$G193) ->  | CM29: =IF(Data!$H193="","",Data!$H193) -> 
B30: =Data!$G8 -> 415 | G30: =Data!$H8 -> 8.16537 | P30: =Data!$G39 -> 570 | U30: =Data!$H39 -> 16.620396 | AD30: =IF(Data!$G70="","",Data!$G70) -> 725 | AI30: =IF(Data!$H70="","",Data!$H70) -> 13.262581 | AR30: =IF(Data!$G101="","",Data!$G101) ->  | AW30: =IF(Data!$H101="","",Data!$H101) ->  | BF30: =IF(Data!$G132="","",Data!$G132) ->  | BK30: =IF(Data!$H132="","",Data!$H132) ->  | BT30: =IF(Data!$G163="","",Data!$G163) ->  | BY30: =IF(Data!$H163="","",Data!$H163) ->  | CH30: =IF(Data!$G194="","",Data!$G194) ->  | CM30: =IF(Data!$H194="","",Data!$H194) -> 
B31: =Data!$G9 -> 420 | G31: =Data!$H9 -> 8.866611 | P31: =Data!$G40 -> 575 | U31: =Data!$H40 -> 16.517523 | AD31: =IF(Data!$G71="","",Data!$G71) -> 730 | AI31: =IF(Data!$H71="","",Data!$H71) -> 14.46374 | AR31: =IF(Data!$G102="","",Data!$G102) ->  | AW31: =IF(Data!$H102="","",Data!$H102) ->  | BF31: =IF(Data!$G133="","",Data!$G133) ->  | BK31: =IF(Data!$H133="","",Data!$H133) ->  | BT31: =IF(Data!$G164="","",Data!$G164) ->  | BY31: =IF(Data!$H164="","",Data!$H164) ->  | CH31: =IF(Data!$G195="","",Data!$G195) ->  | CM31: =IF(Data!$H195="","",Data!$H195) -> 
B32: =Data!$G10 -> 425 | G32: =Data!$H10 -> 9.140368 | P32: =Data!$G41 -> 580 | U32: =Data!$H41 -> 16.530363 | AD32: =IF(Data!$G72="","",Data!$G72) -> 735 | AI32: =IF(Data!$H72="","",Data!$H72) -> 16.200191 | AR32: =IF(Data!$G103="","",Data!$G103) ->  | AW32: =IF(Data!$H103="","",Data!$H103) ->  | BF32: =IF(Data!$G134="","",Data!$G134) ->  | BK32: =IF(Data!$H134="","",Data!$H134) ->  | BT32: =IF(Data!$G165="","",Data!$G165) ->  | BY32: =IF(Data!$H165="","",Data!$H165) ->  | CH32: =IF(Data!$G196="","",Data!$G196) ->  | CM32: =IF(Data!$H196="","",Data!$H196) -> 
B33: =Data!$G11 -> 430 | G33: =Data!$H11 -> 9.262589 | P33: =Data!$G42 -> 585 | U33: =Data!$H42 -> 16.294405 | AD33: =IF(Data!$G73="","",Data!$G73) -> 740 | AI33: =IF(Data!$H73="","",Data!$H73) -> 17.517563 | AR33: =IF(Data!$G104="","",Data!$G104) ->  | AW33: =IF(Data!$H104="","",Data!$H104) ->  | BF33: =IF(Data!$G135="","",Data!$G135) ->  | BK33: =IF(Data!$H135="","",Data!$H135) ->  | BT33: =IF(Data!$G166="","",Data!$G166) ->  | BY33: =IF(Data!$H166="","",Data!$H166) ->  | CH33: =IF(Data!$G197="","",Data!$G197) ->  | CM33: =IF(Data!$H197="","",Data!$H197) -> 
B34: =Data!$G12 -> 435 | G34: =Data!$H12 -> 10.222623 | P34: =Data!$G43 -> 590 | U34: =Data!$H43 -> 15.751006 | AD34: =IF(Data!$G74="","",Data!$G74) -> 745 | AI34: =IF(Data!$H74="","",Data!$H74) -> 18.14922 | AR34: =IF(Data!$G105="","",Data!$G105) ->  | AW34: =IF(Data!$H105="","",Data!$H105) ->  | BF34: =IF(Data!$G136="","",Data!$G136) ->  | BK34: =IF(Data!$H136="","",Data!$H136) ->  | BT34: =IF(Data!$G167="","",Data!$G167) ->  | BY34: =IF(Data!$H167="","",Data!$H167) ->  | CH34: =IF(Data!$G198="","",Data!$G198) ->  | CM34: =IF(Data!$H198="","",Data!$H198) -> 
B35: =Data!$G13 -> 440 | G35: =Data!$H13 -> 11.43452 | P35: =Data!$G44 -> 595 | U35: =Data!$H44 -> 15.803174 | AD35: =IF(Data!$G75="","",Data!$G75) -> 750 | AI35: =IF(Data!$H75="","",Data!$H75) -> 18.020264 | AR35: =IF(Data!$G106="","",Data!$G106) ->  | AW35: =IF(Data!$H106="","",Data!$H106) ->  | BF35: =IF(Data!$G137="","",Data!$G137) ->  | BK35: =IF(Data!$H137="","",Data!$H137) ->  | BT35: =IF(Data!$G168="","",Data!$G168) ->  | BY35: =IF(Data!$H168="","",Data!$H168) ->  | CH35: =IF(Data!$G199="","",Data!$G199) ->  | CM35: =IF(Data!$H199="","",Data!$H199) -> 
B36: =Data!$G14 -> 445 | G36: =Data!$H14 -> 12.582396 | P36: =Data!$G45 -> 600 | U36: =Data!$H45 -> 16.115704 | AD36: =IF(Data!$G76="","",Data!$G76) -> 755 | AI36: =IF(Data!$H76="","",Data!$H76) -> 15.876513 | AR36: =IF(Data!$G107="","",Data!$G107) ->  | AW36: =IF(Data!$H107="","",Data!$H107) ->  | BF36: =IF(Data!$G138="","",Data!$G138) ->  | BK36: =IF(Data!$H138="","",Data!$H138) ->  | BT36: =IF(Data!$G169="","",Data!$G169) ->  | BY36: =IF(Data!$H169="","",Data!$H169) ->  | CH36: =IF(Data!$G200="","",Data!$G200) ->  | CM36: =IF(Data!$H200="","",Data!$H200) -> 
B37: =Data!$G15 -> 450 | G37: =Data!$H15 -> 13.676095 | P37: =Data!$G46 -> 605 | U37: =Data!$H46 -> 16.306223 | AD37: =IF(Data!$G77="","",Data!$G77) -> 760 | AI37: =IF(Data!$H77="","",Data!$H77) -> 12.366732 | AR37: =IF(Data!$G108="","",Data!$G108) ->  | AW37: =IF(Data!$H108="","",Data!$H108) ->  | BF37: =IF(Data!$G139="","",Data!$G139) ->  | BK37: =IF(Data!$H139="","",Data!$H139) ->  | BT37: =IF(Data!$G170="","",Data!$G170) ->  | BY37: =IF(Data!$H170="","",Data!$H170) ->  | CH37: =IF(Data!$G201="","",Data!$G201) ->  | CM37: =IF(Data!$H201="","",Data!$H201) -> 
B38: =Data!$G16 -> 455 | G38: =Data!$H16 -> 14.475695 | P38: =Data!$G47 -> 610 | U38: =Data!$H47 -> 16.259893 | AD38: =IF(Data!$G78="","",Data!$G78) -> 765 | AI38: =IF(Data!$H78="","",Data!$H78) -> 12.54877 | AR38: =IF(Data!$G109="","",Data!$G109) ->  | AW38: =IF(Data!$H109="","",Data!$H109) ->  | BF38: =IF(Data!$G140="","",Data!$G140) ->  | BK38: =IF(Data!$H140="","",Data!$H140) ->  | BT38: =IF(Data!$G171="","",Data!$G171) ->  | BY38: =IF(Data!$H171="","",Data!$H171) ->  | CH38: =IF(Data!$G202="","",Data!$G202) ->  | CM38: =IF(Data!$H202="","",Data!$H202) -> 
B39: =Data!$G17 -> 460 | G39: =Data!$H17 -> 14.90868 | P39: =Data!$G48 -> 615 | U39: =Data!$H48 -> 16.116161 | AD39: =IF(Data!$G79="","",Data!$G79) -> 770 | AI39: =IF(Data!$H79="","",Data!$H79) -> 15.813597 | AR39: =IF(Data!$G110="","",Data!$G110) ->  | AW39: =IF(Data!$H110="","",Data!$H110) ->  | BF39: =IF(Data!$G141="","",Data!$G141) ->  | BK39: =IF(Data!$H141="","",Data!$H141) ->  | BT39: =IF(Data!$G172="","",Data!$G172) ->  | BY39: =IF(Data!$H172="","",Data!$H172) ->  | CH39: =IF(Data!$G203="","",Data!$G203) ->  | CM39: =IF(Data!$H203="","",Data!$H203) -> 
B40: =Data!$G18 -> 465 | G40: =Data!$H18 -> 15.160751 | P40: =Data!$G49 -> 620 | U40: =Data!$H49 -> 16.033514 | AD40: =IF(Data!$G80="","",Data!$G80) -> 775 | AI40: =IF(Data!$H80="","",Data!$H80) -> 17.428082 | AR40: =IF(Data!$G111="","",Data!$G111) ->  | AW40: =IF(Data!$H111="","",Data!$H111) ->  | BF40: =IF(Data!$G142="","",Data!$G142) ->  | BK40: =IF(Data!$H142="","",Data!$H142) ->  | BT40: =IF(Data!$G173="","",Data!$G173) ->  | BY40: =IF(Data!$H173="","",Data!$H173) ->  | CH40: =IF(Data!$G204="","",Data!$G204) ->  | CM40: =IF(Data!$H204="","",Data!$H204) -> 
B41: =Data!$G19 -> 470 | G41: =Data!$H19 -> 15.360201 | P41: =Data!$G50 -> 625 | U41: =Data!$H50 -> 15.820515 | AD41: =IF(Data!$G81="","",Data!$G81) -> 780 | AI41: =IF(Data!$H81="","",Data!$H81) -> 17.473745 | AR41: =IF(Data!$G112="","",Data!$G112) ->  | AW41: =IF(Data!$H112="","",Data!$H112) ->  | BF41: =IF(Data!$G143="","",Data!$G143) ->  | BK41: =IF(Data!$H143="","",Data!$H143) ->  | BT41: =IF(Data!$G174="","",Data!$G174) ->  | BY41: =IF(Data!$H174="","",Data!$H174) ->  | CH41: =IF(Data!$G205="","",Data!$G205) ->  | CM41: =IF(Data!$H205="","",Data!$H205) -> 
B42: =Data!$G20 -> 475 | G42: =Data!$H20 -> 15.666918 | P42: =Data!$G51 -> 630 | U42: =Data!$H51 -> 15.616255 | AD42: =IF(Data!$G82="","",Data!$G82) ->  | AI42: =IF(Data!$H82="","",Data!$H82) ->  | AR42: =IF(Data!$G113="","",Data!$G113) ->  | AW42: =IF(Data!$H113="","",Data!$H113) ->  | BF42: =IF(Data!$G144="","",Data!$G144) ->  | BK42: =IF(Data!$H144="","",Data!$H144) ->  | BT42: =IF(Data!$G175="","",Data!$G175) ->  | BY42: =IF(Data!$H175="","",Data!$H175) ->  | CH42: =IF(Data!$G206="","",Data!$G206) ->  | CM42: =IF(Data!$H206="","",Data!$H206) -> 
B43: =Data!$G21 -> 480 | G43: =Data!$H21 -> 15.932422 | P43: =Data!$G52 -> 635 | U43: =Data!$H52 -> 15.801816 | AD43: =IF(Data!$G83="","",Data!$G83) ->  | AI43: =IF(Data!$H83="","",Data!$H83) ->  | AR43: =IF(Data!$G114="","",Data!$G114) ->  | AW43: =IF(Data!$H114="","",Data!$H114) ->  | BF43: =IF(Data!$G145="","",Data!$G145) ->  | BK43: =IF(Data!$H145="","",Data!$H145) ->  | BT43: =IF(Data!$G176="","",Data!$G176) ->  | BY43: =IF(Data!$H176="","",Data!$H176) ->  | CH43: =IF(Data!$G207="","",Data!$G207) ->  | CM43: =IF(Data!$H207="","",Data!$H207) -> 
B44: =Data!$G22 -> 485 | G44: =Data!$H22 -> 15.754631 | P44: =Data!$G53 -> 640 | U44: =Data!$H53 -> 15.81918 | AD44: =IF(Data!$G84="","",Data!$G84) ->  | AI44: =IF(Data!$H84="","",Data!$H84) ->  | AR44: =IF(Data!$G115="","",Data!$G115) ->  | AW44: =IF(Data!$H115="","",Data!$H115) ->  | BF44: =IF(Data!$G146="","",Data!$G146) ->  | BK44: =IF(Data!$H146="","",Data!$H146) ->  | BT44: =IF(Data!$G177="","",Data!$G177) ->  | BY44: =IF(Data!$H177="","",Data!$H177) ->  | CH44: =IF(Data!$G208="","",Data!$G208) ->  | CM44: =IF(Data!$H208="","",Data!$H208) -> 
B45: =Data!$G23 -> 490 | G45: =Data!$H23 -> 15.870525 | P45: =Data!$G54 -> 645 | U45: =Data!$H54 -> 15.523285 | AD45: =IF(Data!$G85="","",Data!$G85) ->  | AI45: =IF(Data!$H85="","",Data!$H85) ->  | AR45: =IF(Data!$G116="","",Data!$G116) ->  | AW45: =IF(Data!$H116="","",Data!$H116) ->  | BF45: =IF(Data!$G147="","",Data!$G147) ->  | BK45: =IF(Data!$H147="","",Data!$H147) ->  | BT45: =IF(Data!$G178="","",Data!$G178) ->  | BY45: =IF(Data!$H178="","",Data!$H178) ->  | CH45: =IF(Data!$G209="","",Data!$G209) ->  | CM45: =IF(Data!$H209="","",Data!$H209) -> 
B46: =Data!$G24 -> 495 | G46: =Data!$H24 -> 16.288946 | P46: =Data!$G55 -> 650 | U46: =Data!$H55 -> 15.154457 | AD46: =IF(Data!$G86="","",Data!$G86) ->  | AI46: =IF(Data!$H86="","",Data!$H86) ->  | AR46: =IF(Data!$G117="","",Data!$G117) ->  | AW46: =IF(Data!$H117="","",Data!$H117) ->  | BF46: =IF(Data!$G148="","",Data!$G148) ->  | BK46: =IF(Data!$H148="","",Data!$H148) ->  | BT46: =IF(Data!$G179="","",Data!$G179) ->  | BY46: =IF(Data!$H179="","",Data!$H179) ->  | CH46: =IF(Data!$G210="","",Data!$G210) ->  | CM46: =IF(Data!$H210="","",Data!$H210) -> 
B47: =Data!$G25 -> 500 | G47: =Data!$H25 -> 16.311502 | P47: =Data!$G56 -> 655 | U47: =Data!$H56 -> 15.060685 | AD47: =IF(Data!$G87="","",Data!$G87) ->  | AI47: =IF(Data!$H87="","",Data!$H87) ->  | AR47: =IF(Data!$G118="","",Data!$G118) ->  | AW47: =IF(Data!$H118="","",Data!$H118) ->  | BF47: =IF(Data!$G149="","",Data!$G149) ->  | BK47: =IF(Data!$H149="","",Data!$H149) ->  | BT47: =IF(Data!$G180="","",Data!$G180) ->  | BY47: =IF(Data!$H180="","",Data!$H180) ->  | CH47: =IF(Data!$G211="","",Data!$G211) ->  | CM47: =IF(Data!$H211="","",Data!$H211) -> 
B48: =Data!$G26 -> 505 | G48: =Data!$H26 -> 16.393141 | P48: =Data!$G57 -> 660 | U48: =Data!$H57 -> 15.393768 | AD48: =IF(Data!$G88="","",Data!$G88) ->  | AI48: =IF(Data!$H88="","",Data!$H88) ->  | AR48: =IF(Data!$G119="","",Data!$G119) ->  | AW48: =IF(Data!$H119="","",Data!$H119) ->  | BF48: =IF(Data!$G150="","",Data!$G150) ->  | BK48: =IF(Data!$H150="","",Data!$H150) ->  | BT48: =IF(Data!$G181="","",Data!$G181) ->  | BY48: =IF(Data!$H181="","",Data!$H181) ->  | CH48: =IF(Data!$G212="","",Data!$G212) ->  | CM48: =IF(Data!$H212="","",Data!$H212) -> 
B49: =Data!$G27 -> 510 | G49: =Data!$H27 -> 16.575796 | P49: =Data!$G58 -> 665 | U49: =Data!$H58 -> 15.698565 | AD49: =IF(Data!$G89="","",Data!$G89) ->  | AI49: =IF(Data!$H89="","",Data!$H89) ->  | AR49: =IF(Data!$G120="","",Data!$G120) ->  | AW49: =IF(Data!$H120="","",Data!$H120) ->  | BF49: =IF(Data!$G151="","",Data!$G151) ->  | BK49: =IF(Data!$H151="","",Data!$H151) ->  | BT49: =IF(Data!$G182="","",Data!$G182) ->  | BY49: =IF(Data!$H182="","",Data!$H182) ->  | CH49: =IF(Data!$G213="","",Data!$G213) ->  | CM49: =IF(Data!$H213="","",Data!$H213) -> 
B50: =Data!$G28 -> 515 | G50: =Data!$H28 -> 16.40057 | P50: =Data!$G59 -> 670 | U50: =Data!$H59 -> 15.748817 | AD50: =IF(Data!$G90="","",Data!$G90) ->  | AI50: =IF(Data!$H90="","",Data!$H90) ->  | AR50: =IF(Data!$G121="","",Data!$G121) ->  | AW50: =IF(Data!$H121="","",Data!$H121) ->  | BF50: =IF(Data!$G152="","",Data!$G152) ->  | BK50: =IF(Data!$H152="","",Data!$H152) ->  | BT50: =IF(Data!$G183="","",Data!$G183) ->  | BY50: =IF(Data!$H183="","",Data!$H183) ->  | CH50: =IF(Data!$G214="","",Data!$G214) ->  | CM50: =IF(Data!$H214="","",Data!$H214) -> 
B51: =Data!$G29 -> 520 | G51: =Data!$H29 -> 16.492079 | P51: =Data!$G60 -> 675 | U51: =Data!$H60 -> 15.637076 | AD51: =IF(Data!$G91="","",Data!$G91) ->  | AI51: =IF(Data!$H91="","",Data!$H91) ->  | AR51: =IF(Data!$G122="","",Data!$G122) ->  | AW51: =IF(Data!$H122="","",Data!$H122) ->  | BF51: =IF(Data!$G153="","",Data!$G153) ->  | BK51: =IF(Data!$H153="","",Data!$H153) ->  | BT51: =IF(Data!$G184="","",Data!$G184) ->  | BY51: =IF(Data!$H184="","",Data!$H184) ->  | CH51: =IF(Data!$G215="","",Data!$G215) ->  | CM51: =IF(Data!$H215="","",Data!$H215) -> 
B52: =Data!$G30 -> 525 | G52: =Data!$H30 -> 16.956896 | P52: =Data!$G61 -> 680 | U52: =Data!$H61 -> 15.248099 | AD52: =IF(Data!$G92="","",Data!$G92) ->  | AI52: =IF(Data!$H92="","",Data!$H92) ->  | AR52: =IF(Data!$G123="","",Data!$G123) ->  | AW52: =IF(Data!$H123="","",Data!$H123) ->  | BF52: =IF(Data!$G154="","",Data!$G154) ->  | BK52: =IF(Data!$H154="","",Data!$H154) ->  | BT52: =IF(Data!$G185="","",Data!$G185) ->  | BY52: =IF(Data!$H185="","",Data!$H185) ->  | CH52: =IF(Data!$G216="","",Data!$G216) ->  | CM52: =IF(Data!$H216="","",Data!$H216) -> 
B53: =Data!$G31 -> 530 | G53: =Data!$H31 -> 17.308287 | P53: =Data!$G62 -> 685 | U53: =Data!$H62 -> 14.304793 | AD53: =IF(Data!$G93="","",Data!$G93) ->  | AI53: =IF(Data!$H93="","",Data!$H93) ->  | AR53: =IF(Data!$G124="","",Data!$G124) ->  | AW53: =IF(Data!$H124="","",Data!$H124) ->  | BF53: =IF(Data!$G155="","",Data!$G155) ->  | BK53: =IF(Data!$H155="","",Data!$H155) ->  | BT53: =IF(Data!$G186="","",Data!$G186) ->  | BY53: =IF(Data!$H186="","",Data!$H186) ->  | CH53: =IF(Data!$G217="","",Data!$G217) ->  | CM53: =IF(Data!$H217="","",Data!$H217) -> 
A64: ='Protocol 1 (5nm)'!A54:AA54 -> Company
A65: ='Protocol 1 (5nm)'!A55:AA55 -> Address
A66: ='Protocol 1 (5nm)'!A56:AA56 -> ZIP City
A68: ='Protocol 1 (5nm)'!A58:O58 -> Test location, | P68: ='Protocol 1 (5nm)'!P58:AA58 -> Date | BL68: ='Protocol 1 (5nm)'!BL58:CF58 -> First, last name of inspector | CG68: ='Protocol 1 (5nm)'!CG58:CX58 -> Phone number

Sheet Protocol 3
A1: =IF(Data!$AE$2="DE","Messprotokoll",IF(Data!$AE$2="UK","Measurement protocol",IF(Data!$AE$2="FR","Rapport de mesure","Language Error"))) -> Measurement protocol
A4: =IF(Data!$AE$2 = "DE", "Prüfling:", IF(Data!$AE$2 = "UK","Test object:",IF(Data!$AE$2="FR","Objet testé:","Language Error"))) -> Test object: | N4: ='Protocol 1 (5nm)'!N4:BG4 -> Manufacturer | BK4: =IF(Data!$AE$2="DE","Messdatei:",IF(Data!$AE$2="UK","Measurement file:",IF(Data!$AE$2="FR","Fichier de mesure:","Language Error"))) -> Measurement file: | CG4: =Data!Q18 -> Measured
N5: ='Protocol 1 (5nm)'!N5:BG5 -> Type | BK5: =IF(Data!$AE$2="DE","Datum der Messung:",IF(Data!$AE$2="UK","Date of measurement:",IF(Data!$AE$2="FR","Date de mesure:","Language Error"))) -> Date of measurement: | CG5: =Data!Q23 -> 29.09.2021
N6: ='Protocol 1 (5nm)'!N6:BG6 -> Model | BK6: =IF(Data!$AE$2="DE","Uhrzeit der Messung:",IF(Data!$AE$2="UK","Time of measurement:",IF(Data!$AE$2="FR","Heure de mesure:","Language Error"))) -> Time of measurement: | CG6: =Data!Q21 -> 10:06:00
A60: ='Protocol 1 (5nm)'!A54:AA54 -> Company
A61: ='Protocol 1 (5nm)'!A55:AA55 -> Address
A62: ='Protocol 1 (5nm)'!A56:AA56 -> ZIP City
A64: ='Protocol 1 (5nm)'!A58:O58 -> Test location, | P64: ='Protocol 1 (5nm)'!P58:AA58 -> Date | BL64: ='Protocol 1 (5nm)'!BL58:CF58 -> First, last name of inspector | CG64: ='Protocol 1 (5nm)'!CG58:CX58 -> Phone number

Sheet Reference Comparison
A1: =IF(Data!$AE$2="DE","Messprotokoll",IF(Data!$AE$2="UK","Measurement protocol",IF(Data!$AE$2="FR","Rapport de mesure","Language Error"))) -> Measurement protocol
A4: =IF(Data!$AE$2 = "DE", "Prüfling:", IF(Data!$AE$2 = "UK","Test object:",IF(Data!$AE$2="FR","Objet testé:","Language Error"))) -> Test object: | N4: ='Protocol 1 (5nm)'!N4:BG4 -> Manufacturer | BK4: =IF(Data!$AE$2="DE","Messdatei:",IF(Data!$AE$2="UK","Measurement file:",IF(Data!$AE$2="FR","Fichier de mesure:","Language Error"))) -> Measurement file: | CG4: =Data!Q18 -> Measured
N5: ='Protocol 1 (5nm)'!N5:BG5 -> Type | BK5: =IF(Data!$AE$2="DE","Datum der Messung:",IF(Data!$AE$2="UK","Date of measurement:",IF(Data!$AE$2="FR","Date de mesure:","Language Error"))) -> Date of measurement: | CG5: =Data!Q23 -> 29.09.2021
N6: ='Protocol 1 (5nm)'!N6:BG6 -> Model | BK6: =IF(Data!$AE$2="DE","Uhrzeit der Messung:",IF(Data!$AE$2="UK","Time of measurement:",IF(Data!$AE$2="FR","Heure de mesure:","Language Error"))) -> Time of measurement: | CG6: =Data!Q21 -> 10:06:00
BK7: =IF(Data!$AE$2="DE","Referenzdatei:",IF(Data!$AE$2="UK","Reference file:",IF(Data!$AE$2="FR","Fichier de référence:","Language Error"))) -> Reference file: | CG7: =Data!AC18 -> M_000001.CSV
BK8: =IF(Data!$AE$2="DE","Datum der Messung:",IF(Data!$AE$2="UK","Date of measurement:",IF(Data!$AE$2="FR","Date de mesure:","Language Error"))) -> Date of measurement: | CG8: =Data!AC23 -> 29.09.2021
BK9: =IF(Data!$AE$2="DE","Uhrzeit der Messung:",IF(Data!$AE$2="UK","Time of measurement:",IF(Data!$AE$2="FR","Heure de mesure:","Language Error"))) -> Time of measurement: | CG9: =Data!AC21 -> 00:10:04
G25: =Data!$AB$18 -> reference | Q25: =Data!$P$18 -> measurement | AD25: Δ | BO25: =Data!$AB$18 -> reference | CA25: =Data!$P$18 -> measurement | CN25: Δ
B26: Ra | G26: =Data!W1 -> 91.61 | Q26: =Data!K1 -> 96.81 | AD26: =Q26-G26 -> 5.2 | AK26: =IF(Data!$AE$2="DE","Beleuchtungsstärke",IF(Data!$AE$2="UK","Illuminance",IF(Data!$AE$2="FR","Illuminance","Language Error"))) -> Illuminance | BO26: =Data!W33 -> 1721.2 | CA26: =Data!K33 -> 1214.58 | CN26: =CA26-BO26 -> -506.62
B27: R1 | G27: =Data!W2 -> 94.51 | Q27: =Data!K2 -> 96.04 | AD27: =Q27-G27 -> 1.53
B28: R2 | G28: =Data!W3 -> 94.73 | Q28: =Data!K3 -> 97.94 | AD28: 3.21 | AK28: =IF(Data!$AE$2 = "DE", "Ähnlichste Farbtemperatur (CCT)", IF(Data!$AE$2 = "UK","correlated color temperature (CCT)",IF(Data!$AE$2="FR","temp. de couleur proximale (CCT)","Language Error"))) -> correlated color temperature (CCT) | BO28: =Data!W30 -> 4362 | CA28: =Data!K30 -> 5040 | CN28: =CA28-BO28 -> 678
B29: R3 | G29: =Data!W4 -> 85.47 | Q29: =Data!K4 -> 98.67 | AD29: 13.2 | AK29: Duv | BO29: =Data!W31 -> 0.0065 | CA29: =Data!K31 -> 0.0072 | CN29: =CA29-BO29 -> 0.0007
B30: R4 | G30: =Data!W5 -> 93.08 | Q30: =Data!K5 -> 95.47 | AD30: 2.39
B31: R5 | G31: =Data!W6 -> 90.81 | Q31: =Data!K6 -> 96.13 | AD31: 5.32
B32: R6 | G32: =Data!W7 -> 89.59 | Q32: =Data!K7 -> 97.65 | AD32: 8.06
B33: R7 | G33: =Data!W8 -> 97.68 | Q33: =Data!K8 -> 97.96 | AD33: 0.28
B34: R8 | G34: =Data!W9 -> 86.97 | Q34: =Data!K9 -> 94.59 | AD34: 7.62
B35: R9 | G35: =Data!W10 -> 57.31 | Q35: =Data!K10 -> 85.98 | AD35: 28.67
B36: R10 | G36: =Data!W11 -> 77.65 | Q36: =Data!K11 -> 96.26 | AD36: 18.61
B37: R11 | G37: =Data!W12 -> 85.7 | Q37: =Data!K12 -> 94.96 | AD37: 9.26
B38: R12 | G38: =Data!W13 -> 77.63 | Q38: =Data!K13 -> 95.33 | AD38: 17.7
B39: R13 | G39: =Data!W14 -> 94.65 | Q39: =Data!K14 -> 96.38 | AD39: 1.73
B40: R14 | G40: =Data!W15 -> 90.44 | Q40: =Data!K15 -> 98.98 | AD40: 8.54
B41: R15 | G41: =Data!W16 -> 92.98 | Q41: =Data!K16 -> 94.47 | AD41: 1.49
B43: Re | G43: =Data!AC27 -> 87.28 | Q43: =Data!Q27 -> 95.79 | AD43: =Q43-G43 -> 8.51
B44: GAI | G44: =Data!AC28 -> 76.29 | Q44: =Data!Q28 -> 83.56 | AD44: =Q44-G44 -> 7.27
A51: ='Protocol 1 (5nm)'!A54:AA54 -> Company
A52: ='Protocol 1 (5nm)'!A55:AA55 -> Address
A53: ='Protocol 1 (5nm)'!A56:AA56 -> ZIP City
A55: ='Protocol 1 (5nm)'!A58:O58 -> Test location, | P55: ='Protocol 1 (5nm)'!P58:AA58 -> Date | BL55: ='Protocol 1 (5nm)'!BL58:CF58 -> First, last name of inspector | CG55: ='Protocol 1 (5nm)'!CG58:CX58 -> Phone number

Sheet Data
A1: Seriennummer | B1: 21C10666 | C1: Serialnumber | D1: 21C10666 | F1: 1 | G1: =IF(INDEX($A$1:$A$500,MATCH("Spe*",$A$1:$A$500,0)+F1)=0,"",INDEX($A$1:$A$500,MATCH("Spe*",$A$1:$A$500,0)+F1)) -> 380 | H1: =IF(INDEX($A$1:$A$500,MATCH("Spe*",$A$1:$A$500,0)+F1)=0,"",INDEX($B$1:$B$500,MATCH("Spe*",$A$1:$A$500,0)+F1)) -> 1.747025 | I1: CRI | J1: Ra | K1: =IF(ISNA(MATCH(I1,$A$1:$A$259,0)),IF($A$1="",NA(),INDEX($B$1:$B$259,MATCH(J1,$A$1:$A$259,0))),IF($A$1="",NA(),INDEX($B$1:$B$259,MATCH(I1,$A$1:$A$259,0)))) -> 96.81 | L1: =IF(K1="",NA(),IF(K1 < 0, 0, K1)) -> 96.81 | M1: =IF(G1="",NA(),ROUND(G1,0)) -> 380 | N1: =IF(H1="",NA(),H1) -> 1.747025 | P1: R15 | Q1: =IF($A$1="",NA(),INDEX($B$1:$B$259,MATCH(P1,$A$1:$A$259,0))) -> 94.47 | R1: 1 | S1: =IF(INDEX($C$1:$C$500,MATCH("Spe*",$C$1:$C$500,0)+R1)=0,"",INDEX($C$1:$C$500,MATCH("Spe*",$C$1:$C$500,0)+R1)) -> 380 | T1: =IF(INDEX($C$1:$C$500,MATCH("Spe*",$C$1:$C$500,0)+R1)=0,"",INDEX($D$1:$D$500,MATCH("Spe*",$C$1:$C$500,0)+R1)) -> 1.47351 | U1: CRI | V1: Ra | W1: =IF(ISNA(MATCH(U1,$C$1:$C$259,0)),IF($C$1="",NA(),INDEX($D$1:$D$259,MATCH(V1,$C$1:$C$259,0))),IF($C$1="",NA(),INDEX($D$1:$D$259,MATCH(U1,$C$1:$C$259,0)))) -> 91.61 | Y1: =IF(S1="",NA(),ROUND(S1,0)) -> 380 | Z1: =IF(T1="",NA(),T1) -> 1.47351 | AB1: R15 | AC1: =IF($C$1="",NA(),INDEX($D$1:$D$259,MATCH(AB1,$C$1:$C$259,0))) -> 92.98 | AG1: u | AH1: v | AI1: u' | AJ1: v' | AK1: x | AL1: y | AN1: Seriennummer
A2: Software Rev. | B2: 1.3.1 | C2: Software Rev. | D2: 1.3.1 | F2: =F1+1 -> 2 | G2: =IF(INDEX($A$1:$A$500,MATCH("Spe*",$A$1:$A$500,0)+F2)=0,"",INDEX($A$1:$A$500,MATCH("Spe*",$A$1:$A$500,0)+F2)) -> 385 | H2: =IF(INDEX($A$1:$A$500,MATCH("Spe*",$A$1:$A$500,0)+F2)=0,"",INDEX($B$1:$B$500,MATCH("Spe*",$A$1:$A$500,0)+F2)) -> 1.955148 | J2: R1 | K2: =IF($A$1="",NA(),INDEX($B$1:$B$259,MATCH(J2,$A$1:$A$259,0))) -> 96.04 | L2: =IF(K2="",NA(),IF(K2 < 0, 0, K2)) -> 96.04 | M2: 385 | N2: =IF(H2="",NA(),H2) -> 1.955148 | P2: R14 | Q2: 98.98 | R2: =R1+1 -> 2 | S2: =IF(INDEX($C$1:$C$500,MATCH("Spe*",$C$1:$C$500,0)+R2)=0,"",INDEX($C$1:$C$500,MATCH("Spe*",$C$1:$C$500,0)+R2)) -> 385 | T2: =IF(INDEX($C$1:$C$500,MATCH("Spe*",$C$1:$C$500,0)+R2)=0,"",INDEX($D$1:$D$500,MATCH("Spe*",$C$1:$C$500,0)+R2)) -> 1.61064 | V2: R1 | W2: =IF($C$1="",NA(),INDEX($D$1:$D$259,MATCH(V2,$C$1:$C$259,0))) -> 94.51 | Y2: 385 | Z2: =IF(T2="",NA(),T2) -> 1.61064 | AB2: R14 | AC2: 90.44 | AE2: UK | AG2: 0.18006 | AH2: 0.26352 | AI2: =AG2 -> 0.18006 | AJ2: =AH2*1.5 -> 0.39528 | AK2: =(9*AG2)/(6*AG2-16*AJ2+12) -> 0.2398710457 | AL2: =(4*AJ2)/(6*AG2-16*AJ2+12) -> 0.2340361285 | AN2: Software Rev.
A3: Zeit | B3: 10:06:00 | C3: Time | D3: 00:10:04 | F3: =F2+1 -> 3 | G3: 390 | H3: 2.342221 | J3: R2 | K3: 97.94 | L3: 97.94 | M3: 390 | N3: 2.342221 | P3: R13 | Q3: 96.38 | R3: =R2+1 -> 3 | S3: 390 | T3: 1.92247 | V3: R2 | W3: 94.73 | Y3: 390 | Z3: 1.92247 | AB3: R13 | AC3: 94.65 | AG3: 0.18066 | AH3: 0.26589 | AI3: =AG3 -> 0.18066 | AJ3: =AH3*1.5 -> 0.398835 | AK3: =(9*AG3)/(6*AG3-16*AJ3+12) -> 0.2425834751 | AL3: =(4*AJ3)/(6*AG3-16*AJ3+12) -> 0.2380180825 | AN3: Zeit
A4: Datum | B4: 29.09.2021 | C4: Date | D4: 29.09.2021 | F4: 4 | G4: 395 | H4: 3.044351 | J4: R3 | K4: 98.67 | L4: 98.67 | M4: 395 | N4: 3.044351 | P4: R12 | Q4: 95.33 | R4: 4 | S4: 395 | T4: 2.38205 | V4: R3 | W4: 85.47 | Y4: 395 | Z4: 2.38205 | AB4: R12 | AC4: 77.63 | AG4: 0.18133 | AH4: 0.26846 | AI4: 0.18133 | AJ4: 0.40269 | AK4: 0.245595897 | AL4: 0.2424039946 | AN4: Datum
F5: 5 | G5: 400 | H5: 4.478026 | J5: R4 | K5: 95.47 | L5: 95.47 | M5: 400 | N5: 4.478026 | P5: R11 | Q5: 94.96 | R5: 5 | S5: 400 | T5: 4.70174 | V5: R4 | W5: 93.08 | Y5: 400 | Z5: 4.70174 | AB5: R11 | AC5: 85.7 | AG5: 0.18208 | AH5: 0.27119 | AI5: 0.18208 | AJ5: 0.406785 | AK5: 0.2488973135 | AL5: 0.2471384828
A6: Integrationszeit [ms] | B6: 1298 | C6: Integrationtime [ms] | D6: 498 | F6: 6 | G6: 405 | H6: 5.953777 | J6: R5 | K6: 96.13 | L6: 96.13 | M6: 405 | N6: 5.953777 | P6: R10 | Q6: 96.26 | R6: 6 | S6: 405 | T6: 7.85776 | V6: R5 | W6: 90.81 | Y6: 405 | Z6: 7.85776 | AB6: R10 | AC6: 77.65 | AG6: 0.18293 | AH6: 0.27407 | AI6: 0.18293 | AJ6: 0.411105 | AK6: 0.2525146091 | AL6: 0.2522155248 | AN6: Integrationszeit [ms]
A7: E vis [lx] | B7: 1214.58 | C7: E vis [lx] | D7: 1721.2 | F7: 7 | G7: 410 | H7: 6.929542 | J7: R6 | K7: 97.65 | L7: 97.65 | M7: 410 | N7: 6.929542 | P7: R9 | Q7: 85.98 | R7: 7 | S7: 410 | T7: 7.70817 | V7: R6 | W7: 89.59 | Y7: 410 | Z7: 7.70817 | AB7: R9 | AC7: 57.31 | AG7: 0.18388 | AH7: 0.27709 | AI7: 0.18388 | AJ7: 0.415635 | AK7: 0.2564526927 | AL7: 0.2576335168 | AN7: E vis [lx]
A8: Ee [W/m²] | B8: 0 | C8: CCT [K] | D8: 4362 | F8: 8 | G8: 415 | H8: 8.16537 | J8: R7 | K8: 97.96 | L8: 97.96 | M8: 415 | N8: 8.16537 | P8: R8 | Q8: 94.59 | R8: 8 | S8: 415 | T8: 7.51953 | V8: R7 | W8: 97.68 | Y8: 415 | Z8: 7.51953 | AB8: R8 | AC8: 86.97 | AG8: 0.18494 | AH8: 0.28021 | AI8: 0.18494 | AJ8: 0.420315 | AK8: 0.2606991824 | AL8: 0.263330514 | AN8: Ee [W/m²]
A9: LER [lm/W] | C9: Duv | D9: 0.0065 | F9: 9 | G9: 420 | H9: 8.866611 | J9: R8 | K9: 94.59 | L9: 94.59 | M9: 420 | N9: 8.866611 | P9: R7 | Q9: 97.96 | R9: 9 | S9: 420 | T9: 8.42569 | V9: R8 | W9: 86.97 | Y9: 420 | Z9: 8.42569 | AB9: R7 | AC9: 97.68 | AG9: 0.18611 | AH9: 0.28342 | AI9: 0.18611 | AJ9: 0.42513 | AK9: 0.2652575468 | AL9: 0.2693005711 | AN9: LER [lm/W]
A10: CCT [K] | B10: 5040 | C10: Ra | D10: 91.61 | F10: 10 | G10: 425 | H10: 9.140368 | J10: R9 | K10: 85.98 | L10: 85.98 | M10: 425 | N10: 9.140368 | P10: R6 | Q10: 97.65 | R10: 10 | S10: 425 | T10: 9.15014 | V10: R9 | W10: 57.31 | Y10: 425 | Z10: 9.15014 | AB10: R6 | AC10: 89.59 | AG10: 0.1874 | AH10: 0.28668 | AI10: 0.1874 | AJ10: 0.43002 | AK10: 0.2701118499 | AL10: 0.2754737287 | AN10: CCT [K]
A11: Duv | B11: 0.0072 | C11: Re | D11: 87.28 | F11: 11 | G11: 430 | H11: 9.262589 | J11: R10 | K11: 96.26 | L11: 96.26 | M11: 430 | N11: 9.262589 | P11: R5 | Q11: 96.13 | R11: 11 | S11: 430 | T11: 11.0676 | V11: R10 | W11: 77.65 | Y11: 430 | Z11: 11.0676 | AB11: R5 | AC11: 90.81 | AG11: 0.1888 | AH11: 0.28997 | AI11: 0.1888 | AJ11: 0.434955 | AK11: 0.2752400575 | AL11: 0.2818197722 | AN11: Duv
C12: GAI | D12: 76.29 | F12: 12 | G12: 435 | H12: 10.222623 | J12: R11 | K12: 94.96 | L12: 94.96 | M12: 435 | N12: 10.222623 | P12: R4 | Q12: 95.47 | R12: 12 | S12: 435 | T12: 19.21419 | V12: R11 | W12: 85.7 | Y12: 435 | Z12: 19.21419 | AB12: R4 | AC12: 93.08 | AG12: 0.19032 | AH12: 0.29326 | AI12: 0.19032 | AJ12: 0.43989 | AK12: 0.2806307015 | AL12: 0.2882785467
C13: R1 | D13: 94.51 | F13: 13 | G13: 440 | H13: 11.43452 | J13: R12 | K13: 95.33 | L13: 95.33 | M13: 440 | N13: 11.43452 | P13: R3 | Q13: 98.67 | R13: 13 | S13: 440 | T13: 18.46667 | V13: R12 | W13: 77.63 | Y13: 440 | Z13: 18.46667 | AB13: R3 | AC13: 85.47 | AG13: 0.19462 | AH13: 0.30141 | AI13: 0.19462 | AJ13: 0.452115 | AK13: 0.2951829157 | AL13: 0.3047685494
C14: R2 | D14: 94.73 | F14: 14 | G14: 445 | H14: 12.582396 | J14: R13 | K14: 96.38 | L14: 96.38 | M14: 445 | N14: 12.582396 | P14: R2 | Q14: 97.94 | R14: 14 | S14: 445 | T14: 13.97334 | V14: R13 | W14: 94.65 | Y14: 445 | Z14: 13.97334 | AB14: R2 | AC14: 94.73 | AG14: 0.19962 | AH14: 0.30921 | AI14: 0.19962 | AJ14: 0.463815 | AK14: 0.3110056295 | AL14: 0.3211637134
C15: R3 | D15: 85.47 | F15: 15 | G15: 450 | H15: 13.676095 | J15: R14 | K15: 98.98 | L15: 98.98 | M15: 450 | N15: 13.676095 | P15: R1 | Q15: 96.04 | R15: 15 | S15: 450 | T15: 14.68242 | V15: R14 | W15: 90.44 | Y15: 450 | Z15: 14.68242 | AB15: R1 | AC15: 94.51 | AG15: 0.20525 | AH15: 0.31647 | AI15: 0.20525 | AJ15: 0.474705 | AK15: 0.3277462555 | AL15: 0.3368960048
C16: R4 | D16: 93.08 | F16: 16 | G16: 455 | H16: 14.475695 | J16: R15 | K16: 94.47 | L16: 94.47 | M16: 455 | N16: 14.475695 | O16: CRI | P16: Ra | Q16: =IF(ISNA(MATCH(O16,$A$1:$A$259,0)),IF($A$1="",NA(),INDEX($B$1:$B$259,MATCH(P16,$A$1:$A$259,0))),IF($A$1="",NA(),INDEX($B$1:$B$259,MATCH(O16,$A$1:$A$259,0)))) -> 96.81 | R16: 16 | S16: 455 | T16: 15.24776 | V16: R15 | W16: 92.98 | Y16: 455 | Z16: 15.24776 | AA16: CRI | AB16: Ra | AC16: =IF(ISNA(MATCH(AA16,$C$1:$C$259,0)),IF($C$1="",NA(),INDEX($D$1:$D$259,MATCH(AB16,$C$1:$C$259,0))),IF($C$1="",NA(),INDEX($D$1:$D$259,MATCH(AA16,$C$1:$C$259,0)))) -> 91.61 | AG16: 0.21142 | AH16: 0.32312 | AI16: 0.21142 | AJ16: 0.48468 | AK16: 0.3451041417 | AL16: 0.3516225216
C17: R5 | D17: 90.81 | F17: 17 | G17: 460 | H17: 14.90868 | J17: Integrationtime [ms] | M17: 460 | N17: 14.90868 | R17: 17 | S17: 460 | T17: 15.54082 | V17: Integrationtime [ms] | Y17: 460 | Z17: 15.54082 | AG17: 0.21807 | AH17: 0.32909 | AI17: 0.21807 | AJ17: 0.493635 | AK17: 0.3627607546 | AL17: 0.3649621275
C18: R6 | D18: 89.59 | F18: 18 | G18: 465 | H18: 15.160751 | J18: Integrationszeit [ms] | K18: =IF(ISNA(MATCH(J17,$A$1:$A$259,0)),IF($A$1="",NA(),INDEX($B$1:$B$259,MATCH(J18,$A$1:$A$259,0))),IF($A$1="",NA(),INDEX($B$1:$B$259,MATCH(J17,$A$1:$A$259,0)))) -> 1298 | M18: 465 | N18: 15.160751 | P18: measurement | Q18: Measured | R18: 18 | S18: 465 | T18: 15.60059 | V18: Integrationszeit [ms] | W18: =IF(ISNA(MATCH(V17,$C$1:$C$259,0)),IF($C$1="",NA(),INDEX($D$1:$D$259,MATCH(V18,$C$1:$C$259,0))),IF($C$1="",NA(),INDEX($D$1:$D$259,MATCH(V17,$C$1:$C$259,0)))) -> 498 | Y18: 465 | Z18: 15.60059 | AB18: reference | AC18: M_000001.CSV | AG18: 0.22511 | AH18: 0.33439 | AI18: 0.22511 | AJ18: 0.501585 | AK18: 0.380446172 | AL18: 0.3767562391
C19: R7 | D19: 97.68 | F19: 19 | G19: 470 | H19: 15.360201 | M19: 470 | N19: 15.360201 | R19: 19 | S19: 470 | T19: 15.51365 | Y19: 470 | Z19: 15.51365 | AG19: 0.23247 | AH19: 0.33904 | AI19: 0.23247 | AJ19: 0.50856 | AK19: 0.3979242506 | AL19: 0.3868950486
C20: R8 | D20: 86.97 | F20: 20 | G20: 475 | H20: 15.666918 | M20: 475 | N20: 15.666918 | P20: Time | R20: 20 | S20: 475 | T20: 15.90448 | Y20: 475 | Z20: 15.90448 | AB20: Time | AG20: 0.2401 | AH20: 0.34308 | AI20: 0.2401 | AJ20: 0.51462 | AK20: 0.4150245454 | AL20: 0.3953536611
C21: R9 | D21: 57.31 | F21: 21 | G21: 480 | H21: 15.932422 | M21: 480 | N21: 15.932422 | P21: Zeit | Q21: =IF(ISNA(MATCH(P20,$A$1:$A$259,0)),IF($A$1="",NA(),INDEX($B$1:$B$259,MATCH(P21,$A$1:$A$259,0))),IF($A$1="",NA(),INDEX($B$1:$B$259,MATCH(P20,$A$1:$A$259,0)))) -> 10:06:00 | R21: 21 | S21: 480 | T21: 17.21222 | Y21: 480 | Z21: 17.21222 | AB21: Zeit | AC21: =IF(ISNA(MATCH(AB20,$C$1:$C$259,0)),IF($C$1="",NA(),INDEX($D$1:$D$259,MATCH(AB21,$C$1:$C$259,0))),IF($C$1="",NA(),INDEX($D$1:$D$259,MATCH(AB20,$C$1:$C$259,0)))) -> 00:10:04 | AG21: 0.24702 | AH21: 0.34655 | AI21: 0.24702 | AJ21: 0.519825 | AK21: 0.4304384192 | AL21: 0.4025812597
C22: R10 | D22: 77.65 | F22: 22 | G22: 485 | H22: 15.754631 | M22: 485 | N22: 15.754631 | P22: Date | R22: 22 | S22: 485 | T22: 20.17515 | Y22: 485 | Z22: 20.17515 | AB22: Date | AG22: 0.25591 | AH22: 0.34951 | AI22: 0.25591 | AJ22: 0.524265 | AK22: 0.4474629023 | AL22: 0.4074160421
C23: R11 | D23: 85.7 | F23: 23 | G23: 490 | H23: 15.870525 | J23: x | K23: =IF($A$1="",NA(),INDEX($B$1:$B$259,MATCH(J23,$A$1:$A$259,0))) -> 0.3453 | M23: 490 | N23: 15.870525 | P23: Datum | Q23: =IF(ISNA(MATCH(P22,$A$1:$A$259,0)),IF($A$1="",NA(),INDEX($B$1:$B$259,MATCH(P23,$A$1:$A$259,0))),IF($A$1="",NA(),INDEX($B$1:$B$259,MATCH(P22,$A$1:$A$259,0)))) -> 29.09.2021 | R23: 23 | S23: 490 | T23: 21.48396 | V23: x | W23: =IF($C$1="",NA(),INDEX($D$1:$D$259,MATCH(V23,$C$1:$C$259,0))) -> 0.369 | Y23: 490 | Z23: 21.48396 | AB23: Datum | AC23: =IF(ISNA(MATCH(AB22,$C$1:$C$259,0)),IF($C$1="",NA(),INDEX($D$1:$D$259,MATCH(AB23,$C$1:$C$259,0))),IF($C$1="",NA(),INDEX($D$1:$D$259,MATCH(AB22,$C$1:$C$259,0)))) -> 29.09.2021 | AG23: 0.264 | AH23: 0.352 | AI23: 0.264 | AJ23: 0.528 | AK23: 0.4626168224 | AL23: 0.4112149533
C24: R12 | D24: 77.63 | F24: 24 | G24: 495 | H24: 16.288946 | J24: y | K24: 0.3663 | M24: 495 | N24: 16.288946 | R24: 24 | S24: 495 | T24: 19.65676 | V24: y | W24: 0.3832 | Y24: 495 | Z24: 19.65676 | AG24: 0.27218 | AH24: 0.35407 | AI24: 0.27218 | AJ24: 0.531105 | AK24: 0.4770066597 | AL24: 0.4136815048
C25: R13 | D25: 94.65 | F25: 25 | G25: 500 | H25: 16.311502 | J25: u' | K25: 0.206 | M25: 500 | N25: 16.311502 | R25: 25 | S25: 500 | T25: 17.5927 | V25: u' | W25: 0.2152 | Y25: 500 | Z25: 17.5927 | AG25: 0.28039 | AH25: 0.35577 | AI25: 0.28039 | AJ25: 0.533655 | AK25: 0.4905868356 | AL25: 0.4149840781
C26: R14 | D26: 90.44 | F26: 26 | G26: 505 | H26: 16.393141 | J26: v' | K26: 0.4917 | M26: 505 | N26: 16.393141 | R26: 26 | S26: 505 | T26: 16.1431 | V26: v' | W26: 0.5027 | Y26: 505 | Z26: 16.1431 | AG26: 0.28863 | AH26: 0.35714 | AI26: 0.28863 | AJ26: 0.53571 | AK26: 0.5033834455 | AL26: 0.4152452707
C27: R15 | D27: 92.98 | F27: 27 | G27: 510 | H27: 16.575796 | J27: u | K27: 0.206 | M27: 510 | N27: 16.575796 | P27: Re | Q27: =IF($A$1="",NA(),INDEX($B$1:$B$259,MATCH(P27,$A$1:$A$259,0))) -> 95.79 | R27: 27 | S27: 510 | T27: 15.70593 | V27: u | W27: 0.2152 | Y27: 510 | Z27: 15.70593 | AB27: Re | AC27: =IF($C$1="",NA(),INDEX($D$1:$D$259,MATCH(AB27,$C$1:$C$259,0))) -> 87.28 | AG27: 0.29685 | AH27: 0.35823 | AI27: 0.29685 | AJ27: 0.537345 | AK27: 0.5154063408 | AL27: 0.41465165
C28: x | D28: 0.369 | F28: 28 | G28: 515 | H28: 16.40057 | J28: v | K28: 0.3278 | M28: 515 | N28: 16.40057 | P28: GAI | Q28: =IF(ISNA(MATCH(O28,$A$1:$A$259,0)),IF($A$1="",NA(),INDEX($B$1:$B$259,MATCH(P28,$A$1:$A$259,0))),IF($A$1="",NA(),INDEX($B$1:$B$259,MATCH(O28,$A$1:$A$259,0)))) -> 83.56 | R28: 28 | S28: 515 | T28: 15.45305 | V28: v | W28: 0.3351 | Y28: 515 | Z28: 15.45305 | AB28: GAI | AC28: =IF(ISNA(MATCH(AA28,$C$1:$C$259,0)),IF($C$1="",NA(),INDEX($D$1:$D$259,MATCH(AB28,$C$1:$C$259,0))),IF($C$1="",NA(),INDEX($D$1:$D$259,MATCH(AA28,$C$1:$C$259,0)))) -> 76.29 | AG28: 0.30505 | AH28: 0.35907 | AI28: 0.30505 | AJ28: 0.538605 | AK28: 0.5266929107 | AL28: 0.4133084706
C29: y | D29: 0.3832 | F29: 29 | G29: 520 | H29: 16.492079 | M29: 520 | N29: 16.492079 | R29: 29 | S29: 520 | T29: 15.55371 | Y29: 520 | Z29: 15.55371 | AG29: 0.3132 | AH29: 0.35968 | AI29: 0.3132 | AJ29: 0.53952 | AK29: 0.5372335559 | AL29: 0.4113072912
C30: u' | D30: 0.2152 | F30: 30 | G30: 525 | H30: 16.956896 | J30: CCT [K] | K30: =IF($A$1="",NA(),INDEX($B$1:$B$259,MATCH(J30,$A$1:$A$259,0))) -> 5040 | M30: 525 | N30: 16.956896 | R30: 30 | S30: 525 | T30: 16.21996 | V30: CCT [K] | W30: =IF($C$1="",NA(),INDEX($D$1:$D$259,MATCH(V30,$C$1:$C$259,0))) -> 4362 | Y30: 525 | Z30: 16.21996 | AG30: 0.32129 | AH30: 0.36011 | AI30: 0.32129 | AJ30: 0.540165 | AK30: 0.5471249361 | AL30: 0.4088210251
C31: v' | D31: 0.5027 | F31: 31 | G31: 530 | H31: 17.308287 | J31: Duv | K31: =IF($A$1="",NA(),INDEX($B$1:$B$259,MATCH(J31,$A$1:$A$259,0))) -> 0.0072 | M31: 530 | N31: 17.308287 | R31: 31 | S31: 530 | T31: 17.9473 | V31: Duv | W31: =IF($C$1="",NA(),INDEX($D$1:$D$259,MATCH(V31,$C$1:$C$259,0))) -> 0.0065 | Y31: 530 | Z31: 17.9473 | AG31: 0.32931 | AH31: 0.36038 | AI31: 0.32931 | AJ31: 0.54057 | AK31: 0.5563984726 | AL31: 0.4059293301
C32: u | D32: 0.2152 | F32: 32 | G32: 535 | H32: 17.530825 | J32: E vis [fc] | M32: 535 | N32: 17.530825 | R32: 32 | S32: 535 | T32: 23.31727 | V32: E vis [fc] | Y32: 535 | Z32: 23.31727 | AG32: 0.33724 | AH32: 0.36051 | AI32: 0.33724 | AJ32: 0.540765 | AK32: 0.565080429 | AL32: 0.4027144772
C33: v | D33: 0.3351 | F33: 33 | G33: 540 | H33: 17.427284 | J33: E vis [lx] | K33: =IF(ISNA(MATCH(J32,$A$1:$A$259,0)),IF($A$1="",NA(),INDEX($B$1:$B$259,MATCH(J33,$A$1:$A$259,0))),IF($A$1="",NA(),INDEX($B$1:$B$259,MATCH(J32,$A$1:$A$259,0)))) -> 1214.58 | M33: 540 | N33: 17.427284 | R33: 33 | S33: 540 | T33: 37.23421 | V33: E vis [lx] | W33: =IF(ISNA(MATCH(V32,$C$1:$C$259,0)),IF($C$1="",NA(),INDEX($D$1:$D$259,MATCH(V33,$C$1:$C$259,0))),IF($C$1="",NA(),INDEX($D$1:$D$259,MATCH(V32,$C$1:$C$259,0)))) -> 1721.2 | Y33: 540 | Z33: 37.23421 | AG33: 0.37 | AH33: 0.3598 | AI33: =AG33 -> 0.37 | AJ33: =AH33*1.5 -> 0.5397 | AK33: =(9*AG33)/(6*AG33-16*AJ33+12) -> 0.5962612806 | AL33: =(4*AJ33)/(6*AG33-16*AJ33+12) -> 0.386549205
F34: 34 | G34: 545 | H34: 17.464561 | M34: 545 | N34: 17.464561 | R34: 34 | S34: 545 | T34: 47.17611 | Y34: 545 | Z34: 47.17611 | AG34: 0.4 | AH34: 0.357 | AI34: =AG34 -> 0.4 | AJ34: =AH34*1.5 -> 0.5355 | AK34: =(9*AG34)/(6*AG34-16*AJ34+12) -> 0.6172839506 | AL34: =(4*AJ34)/(6*AG34-16*AJ34+12) -> 0.3672839506
C35: Resolution | D35: 5 nm | F35: 35 | G35: 550 | H35: 17.491383 | M35: 550 | N35: 17.491383 | R35: 35 | S35: 550 | T35: 37.41249 | Y35: 550 | Z35: 37.41249
C36: Spectrum in [nm] | D36: mW/m²/nm | F36: 36 | G36: 555 | H36: 17.440125 | M36: 555 | N36: 17.440125 | R36: 36 | S36: 555 | T36: 23.90398 | Y36: 555 | Z36: 23.90398
C37: 380 | D37: 1.47351 | F37: 37 | G37: 560 | H37: 17.214663 | M37: 560 | N37: 17.214663 | R37: 37 | S37: 560 | T37: 18.83002 | Y37: 560 | Z37: 18.83002
C38: 385 | D38: 1.61064 | F38: 38 | G38: 565 | H38: 16.857655 | M38: 565 | N38: 16.857655 | R38: 38 | S38: 565 | T38: 17.49051 | Y38: 565 | Z38: 17.49051
C39: 390 | D39: 1.92247 | F39: 39 | G39: 570 | H39: 16.620396 | M39: 570 | N39: 16.620396 | R39: 39 | S39: 570 | T39: 17.49923 | Y39: 570 | Z39: 17.49923
C40: 395 | D40: 2.38205 | F40: 40 | G40: 575 | H40: 16.517523 | M40: 575 | N40: 16.517523 | R40: 40 | S40: 575 | T40: 19.34279 | Y40: 575 | Z40: 19.34279
C41: 400 | D41: 4.70174 | F41: 41 | G41: 580 | H41: 16.530363 | M41: 580 | N41: 16.530363 | R41: 41 | S41: 580 | T41: 22.4836 | Y41: 580 | Z41: 22.4836
C42: 405 | D42: 7.85776 | F42: 42 | G42: 585 | H42: 16.294405 | M42: 585 | N42: 16.294405 | R42: 42 | S42: 585 | T42: 24.07419 | Y42: 585 | Z42: 24.07419
C43: 410 | D43: 7.70817 | F43: 43 | G43: 590 | H43: 15.751006 | M43: 590 | N43: 15.751006 | R43: 43 | S43: 590 | T43: 23.13811 | Y43: 590 | Z43: 23.13811
C44: 415 | D44: 7.51953 | F44: 44 | G44: 595 | H44: 15.803174 | M44: 595 | N44: 15.803174 | R44: 44 | S44: 595 | T44: 21.57702 | Y44: 595 | Z44: 21.57702
C45: 420 | D45: 8.42569 | F45: 45 | G45: 600 | H45: 16.115704 | M45: 600 | N45: 16.115704 | R45: 45 | S45: 600 | T45: 21.33748 | Y45: 600 | Z45: 21.33748
C46: 425 | D46: 9.15014 | F46: 46 | G46: 605 | H46: 16.306223 | M46: 605 | N46: 16.306223 | R46: 46 | S46: 605 | T46: 26.7039 | Y46: 605 | Z46: 26.7039
C47: 430 | D47: 11.0676 | F47: 47 | G47: 610 | H47: 16.259893 | M47: 610 | N47: 16.259893 | R47: 47 | S47: 610 | T47: 39.13823 | Y47: 610 | Z47: 39.13823
C48: 435 | D48: 19.21419 | F48: 48 | G48: 615 | H48: 16.116161 | M48: 615 | N48: 16.116161 | R48: 48 | S48: 615 | T48: 37.86979 | Y48: 615 | Z48: 37.86979
C49: 440 | D49: 18.46667 | F49: 49 | G49: 620 | H49: 16.033514 | M49: 620 | N49: 16.033514 | R49: 49 | S49: 620 | T49: 26.87499 | Y49: 620 | Z49: 26.87499
C50: 445 | D50: 13.97334 | F50: 50 | G50: 625 | H50: 15.820515 | M50: 625 | N50: 15.820515 | R50: 50 | S50: 625 | T50: 23.07054 | Y50: 625 | Z50: 23.07054
C51: 450 | D51: 14.68242 | F51: 51 | G51: 630 | H51: 15.616255 | M51: 630 | N51: 15.616255 | R51: 51 | S51: 630 | T51: 21.27414 | Y51: 630 | Z51: 21.27414
C52: 455 | D52: 15.24776 | F52: 52 | G52: 635 | H52: 15.801816 | M52: 635 | N52: 15.801816 | R52: 52 | S52: 635 | T52: 18.59689 | Y52: 635 | Z52: 18.59689
C53: 460 | D53: 15.54082 | F53: 53 | G53: 640 | H53: 15.81918 | M53: 640 | N53: 15.81918 | R53: 53 | S53: 640 | T53: 16.76801 | Y53: 640 | Z53: 16.76801
C54: 465 | D54: 15.60059 | F54: 54 | G54: 645 | H54: 15.523285 | M54: 645 | N54: 15.523285 | R54: 54 | S54: 645 | T54: 16.21252 | Y54: 645 | Z54: 16.21252
C55: 470 | D55: 15.51365 | F55: 55 | G55: 650 | H55: 15.154457 | M55: 650 | N55: 15.154457 | R55: 55 | S55: 650 | T55: 16.10452 | Y55: 650 | Z55: 16.10452
C56: 475 | D56: 15.90448 | F56: 56 | G56: 655 | H56: 15.060685 | M56: 655 | N56: 15.060685 | R56: 56 | S56: 655 | T56: 15.83139 | Y56: 655 | Z56: 15.83139
C57: 480 | D57: 17.21222 | F57: 57 | G57: 660 | H57: 15.393768 | M57: 660 | N57: 15.393768 | R57: 57 | S57: 660 | T57: 15.91069 | Y57: 660 | Z57: 15.91069
C58: 485 | D58: 20.17515 | F58: 58 | G58: 665 | H58: 15.698565 | M58: 665 | N58: 15.698565 | R58: 58 | S58: 665 | T58: 16.00744 | Y58: 665 | Z58: 16.00744
C59: 490 | D59: 21.48396 | F59: 59 | G59: 670 | H59: 15.748817 | M59: 670 | N59: 15.748817 | R59: 59 | S59: 670 | T59: 15.87359 | Y59: 670 | Z59: 15.87359
C60: 495 | D60: 19.65676 | F60: 60 | G60: 675 | H60: 15.637076 | M60: 675 | N60: 15.637076 | R60: 60 | S60: 675 | T60: 15.72721 | Y60: 675 | Z60: 15.72721
C61: 500 | D61: 17.5927 | F61: 61 | G61: 680 | H61: 15.248099 | M61: 680 | N61: 15.248099 | R61: 61 | S61: 680 | T61: 15.30932 | Y61: 680 | Z61: 15.30932
C62: 505 | D62: 16.1431 | F62: 62 | G62: 685 | H62: 14.304793 | M62: 685 | N62: 14.304793 | R62: 62 | S62: 685 | T62: 14.61806 | Y62: 685 | Z62: 14.61806
C63: 510 | D63: 15.70593 | F63: 63 | G63: 690 | H63: 13.66293 | M63: 690 | N63: 13.66293 | R63: 63 | S63: 690 | T63: 14.10763 | Y63: 690 | Z63: 14.10763
C64: 515 | D64: 15.45305 | F64: 64 | G64: 695 | H64: 14.074071 | M64: 695 | N64: 14.074071 | R64: 64 | S64: 695 | T64: 14.37971 | Y64: 695 | Z64: 14.37971
C65: 520 | D65: 15.55371 | F65: 65 | G65: 700 | H65: 14.629459 | M65: 700 | N65: 14.629459 | R65: 65 | S65: 700 | T65: 15.36888 | Y65: 700 | Z65: 15.36888
C66: 525 | D66: 16.21996 | F66: 66 | G66: =IF(INDEX($A$1:$A$500,MATCH("Spe*",$A$1:$A$500,0)+F66)=0,"",INDEX($A$1:$A$500,MATCH("Spe*",$A$1:$A$500,0)+F66)) -> 705 | H66: =IF(INDEX($A$1:$A$500,MATCH("Spe*",$A$1:$A$500,0)+F66)=0,"",INDEX($B$1:$B$500,MATCH("Spe*",$A$1:$A$500,0)+F66)) -> 15.202375 | M66: =IF(G66="",NA(),ROUND(G66,0)) -> 705 | N66: =IF(H66="",NA(),H66) -> 15.202375 | R66: 66 | S66: =IF(INDEX($C$1:$C$500,MATCH("Spe*",$C$1:$C$500,0)+R66)=0,"",INDEX($C$1:$C$500,MATCH("Spe*",$C$1:$C$500,0)+R66)) -> 705 | T66: =IF(INDEX($C$1:$C$500,MATCH("Spe*",$C$1:$C$500,0)+R66)=0,"",INDEX($D$1:$D$500,MATCH("Spe*",$C$1:$C$500,0)+R66)) -> 17.44347 | Y66: =IF(S66="",NA(),ROUND(S66,0)) -> 705 | Z66: =IF(T66="",NA(),T66) -> 17.44347
C67: 530 | D67: 17.9473 | F67: =F66+1 -> 67 | G67: 710 | H67: 15.358994 | M67: 710 | N67: 15.358994 | R67: =R66+1 -> 67 | S67: 710 | T67: 18.22226 | Y67: 710 | Z67: 18.22226
C68: 535 | D68: 23.31727 | F68: 68 | G68: 715 | H68: 14.246861 | M68: 715 | N68: 14.246861 | R68: 68 | S68: 715 | T68: 16.07477 | Y68: 715 | Z68: 16.07477
C69: 540 | D69: 37.23421 | F69: 69 | G69: 720 | H69: 13.123232 | M69: 720 | N69: 13.123232 | R69: 69 | S69: 720 | T69: 14.04514 | Y69: 720 | Z69: 14.04514
C70: 545 | D70: 47.17611 | F70: 70 | G70: 725 | H70: 13.262581 | M70: 725 | N70: 13.262581 | R70: 70 | S70: 725 | T70: 14.04414 | Y70: 725 | Z70: 14.04414
C71: 550 | D71: 37.41249 | F71: 71 | G71: 730 | H71: 14.46374 | M71: 730 | N71: 14.46374 | R71: 71 | S71: 730 | T71: 15.38182 | Y71: 730 | Z71: 15.38182
C72: 555 | D72: 23.90398 | F72: 72 | G72: 735 | H72: 16.200191 | M72: 735 | N72: 16.200191 | R72: 72 | S72: 735 | T72: 17.49528 | Y72: 735 | Z72: 17.49528
C73: 560 | D73: 18.83002 | F73: 73 | G73: 740 | H73: 17.517563 | M73: 740 | N73: 17.517563 | R73: 73 | S73: 740 | T73: 19.04103 | Y73: 740 | Z73: 19.04103
C74: 565 | D74: 17.49051 | F74: 74 | G74: 745 | H74: 18.14922 | M74: 745 | N74: 18.14922 | R74: 74 | S74: 745 | T74: 19.70627 | Y74: 745 | Z74: 19.70627
C75: 570 | D75: 17.49923 | F75: 75 | G75: 750 | H75: 18.020264 | M75: 750 | N75: 18.020264 | R75: 75 | S75: 750 | T75: 19.74294 | Y75: 750 | Z75: 19.74294
C76: 575 | D76: 19.34279 | F76: 76 | G76: 755 | H76: 15.876513 | M76: 755 | N76: 15.876513 | R76: 76 | S76: 755 | T76: 17.53004 | Y76: 755 | Z76: 17.53004
C77: 580 | D77: 22.4836 | F77: 77 | G77: 760 | H77: 12.366732 | M77: 760 | N77: 12.366732 | R77: 77 | S77: 760 | T77: 13.8043 | Y77: 760 | Z77: 13.8043
C78: 585 | D78: 24.07419 | F78: 78 | G78: 765 | H78: 12.54877 | M78: 765 | N78: 12.54877 | R78: 78 | S78: 765 | T78: 13.91686 | Y78: 765 | Z78: 13.91686
C79: 590 | D79: 23.13811 | F79: 79 | G79: 770 | H79: 15.813597 | M79: 770 | N79: 15.813597 | R79: 79 | S79: 770 | T79: 17.6021 | Y79: 770 | Z79: 17.6021
C80: 595 | D80: 21.57702 | F80: 80 | G80: 775 | H80: 17.428082 | M80: 775 | N80: 17.428082 | R80: 80 | S80: 775 | T80: 19.48445 | Y80: 775 | Z80: 19.48445
C81: 600 | D81: 21.33748 | F81: 81 | G81: 780 | H81: 17.473745 | M81: 780 | N81: 17.473745 | R81: 81 | S81: 780 | T81: 19.24796 | Y81: 780 | Z81: 19.24796
C82: 605 | D82: 26.7039 | F82: 82 | R82: 82
C83: 610 | D83: 39.13823 | F83: 83 | R83: 83 | Y83: =IF(S83="",NA(),ROUND(S83,0)) ->  | Z83: =IF(T83="",NA(),T83) -> 
C84: 615 | D84: 37.86979 | F84: 84 | R84: 84
C85: 620 | D85: 26.87499 | F85: 85 | R85: 85
C86: 625 | D86: 23.07054 | F86: 86 | R86: 86
C87: 630 | D87: 21.27414 | F87: 87 | R87: 87
C88: 635 | D88: 18.59689 | F88: 88 | R88: 88
C89: 640 | D89: 16.76801 | F89: 89 | R89: 89
C90: 645 | D90: 16.21252 | F90: 90 | R90: 90
C91: 650 | D91: 16.10452 | F91: 91 | R91: 91
C92: 655 | D92: 15.83139 | F92: 92 | R92: 92
C93: 660 | D93: 15.91069 | F93: 93 | R93: 93
C94: 665 | D94: 16.00744 | F94: 94 | R94: 94
C95: 670 | D95: 15.87359 | F95: 95 | R95: 95
C96: 675 | D96: 15.72721 | F96: 96 | R96: 96
C97: 680 | D97: 15.30932 | F97: 97 | R97: 97
C98: 685 | D98: 14.61806 | F98: 98 | R98: 98 | Y98: =IF(S98="",NA(),ROUND(S98,0)) ->  | Z98: =IF(T98="",NA(),T98) -> 
C99: 690 | D99: 14.10763 | F99: 99 | R99: 99
C100: 695 | D100: 14.37971 | F100: 100 | R100: 100
C101: 700 | D101: 15.36888 | F101: 101 | R101: 101
C102: 705 | D102: 17.44347 | F102: 102 | R102: 102
C103: 710 | D103: 18.22226 | F103: 103 | R103: 103
C104: 715 | D104: 16.07477 | F104: 104 | R104: 104
C105: 720 | D105: 14.04514 | F105: 105 | R105: 105
C106: 725 | D106: 14.04414 | F106: 106 | R106: 106
C107: 730 | D107: 15.38182 | F107: 107 | R107: 107
C108: 735 | D108: 17.49528 | F108: 108 | R108: 108
C109: 740 | D109: 19.04103 | F109: 109 | R109: 109
C110: 745 | D110: 19.70627 | F110: 110 | R110: 110
C111: 750 | D111: 19.74294 | F111: 111 | R111: 111
C112: 755 | D112: 17.53004 | F112: 112 | R112: 112
A113: Ra | B113: 96.81 | C113: 760 | D113: 13.8043 | F113: 113 | R113: 113 | AN113: Ra
A114: Re | B114: 95.79 | C114: 765 | D114: 13.91686 | F114: 114 | R114: 114 | AN114: Re
A115: GAI | B115: 83.56 | C115: 770 | D115: 17.6021 | F115: 115 | R115: 115 | AN115: GAI
A116: R1 | B116: 96.04 | C116: 775 | D116: 19.48445 | F116: 116 | R116: 116 | AN116: R1
A117: R2 | B117: 97.94 | C117: 780 | D117: 19.24796 | F117: 117 | R117: 117 | AN117: R2
A118: R3 | B118: 98.67 | F118: 118 | R118: 118 | AN118: R3
A119: R4 | B119: 95.47 | F119: 119 | R119: 119 | AN119: R4
A120: R5 | B120: 96.13 | F120: 120 | R120: 120 | AN120: R5
A121: R6 | B121: 97.65 | F121: 121 | R121: 121 | AN121: R6
A122: R7 | B122: 97.96 | F122: 122 | R122: 122 | AN122: R7
A123: R8 | B123: 94.59 | F123: 123 | R123: 123 | AN123: R8
A124: R9 | B124: 85.98 | F124: 124 | R124: 124 | AN124: R9
A125: R10 | B125: 96.26 | F125: 125 | R125: 125 | AN125: R10
A126: R11 | B126: 94.96 | F126: 126 | R126: 126 | AN126: R11
A127: R12 | B127: 95.33 | F127: 127 | R127: 127 | AN127: R12
A128: R13 | B128: 96.38 | F128: 128 | R128: 128 | AN128: R13
A129: R14 | B129: 98.98 | F129: 129 | R129: 129 | AN129: R14
A130: R15 | B130: 94.47 | F130: 130 | G130: =IF(INDEX($A$1:$A$500,MATCH("Spe*",$A$1:$A$500,0)+F130)=0,"",INDEX($A$1:$A$500,MATCH("Spe*",$A$1:$A$500,0)+F130)) ->  | H130: =IF(INDEX($A$1:$A$500,MATCH("Spe*",$A$1:$A$500,0)+F130)=0,"",INDEX($B$1:$B$500,MATCH("Spe*",$A$1:$A$500,0)+F130)) ->  | M130: =IF(G130="",NA(),ROUND(G130,0)) ->  | N130: =IF(H130="",NA(),H130) ->  | R130: 130 | S130: =IF(INDEX($C$1:$C$500,MATCH("Spe*",$C$1:$C$500,0)+R130)=0,"",INDEX($C$1:$C$500,MATCH("Spe*",$C$1:$C$500,0)+R130)) ->  | T130: =IF(INDEX($C$1:$C$500,MATCH("Spe*",$C$1:$C$500,0)+R130)=0,"",INDEX($D$1:$D$500,MATCH("Spe*",$C$1:$C$500,0)+R130)) ->  | AN130: R15
A131: x | B131: 0.3453 | F131: =F130+1 -> 131 | R131: =R130+1 -> 131 | AN131: x
A132: y | B132: 0.3663 | F132: 132 | R132: 132 | AN132: y
A133: u | B133: 0.206 | F133: 133 | R133: 133 | AN133: u
A134: v | B134: 0.3278 | F134: 134 | R134: 134 | AN134: v
A135: u' | B135: 0.206 | F135: 135 | R135: 135 | AN135: u'
A136: v' | B136: 0.4917 | F136: 136 | R136: 136 | AN136: v'
F137: 137 | R137: 137
F138: 138 | R138: 138
F139: 139 | R139: 139
F140: 140 | R140: 140
F141: 141 | R141: 141
F142: 142 | R142: 142
F143: 143 | R143: 143
F144: 144 | R144: 144
F145: 145 | R145: 145
F146: 146 | R146: 146
F147: 147 | R147: 147
F148: 148 | R148: 148
F149: 149 | R149: 149
F150: 150 | R150: 150
F151: 151 | R151: 151
F152: 152 | R152: 152
F153: 153 | R153: 153
F154: 154 | R154: 154
F155: 155 | R155: 155
F156: 156 | R156: 156
F157: 157 | R157: 157
F158: 158 | R158: 158
F159: 159 | R159: 159
F160: 160 | R160: 160
F161: 161 | R161: 161
F162: 162 | R162: 162 | Y162: =IF(S162="",NA(),ROUND(S162,0)) ->  | Z162: =IF(T162="",NA(),T162) -> 
F163: 163 | R163: 163
F164: 164 | R164: 164
F165: 165 | R165: 165
F166: 166 | R166: 166
F167: 167 | R167: 167
F168: 168 | R168: 168
F169: 169 | R169: 169
F170: 170 | R170: 170
F171: 171 | R171: 171
F172: 172 | R172: 172
F173: 173 | R173: 173
F174: 174 | R174: 174
F175: 175 | R175: 175
F176: 176 | R176: 176
F177: 177 | R177: 177
F178: 178 | R178: 178
F179: 179 | R179: 179
F180: 180 | R180: 180
F181: 181 | R181: 181
F182: 182 | R182: 182
F183: 183 | R183: 183
F184: 184 | R184: 184
F185: 185 | R185: 185
F186: 186 | R186: 186
F187: 187 | R187: 187
F188: 188 | R188: 188
F189: 189 | R189: 189
F190: 190 | R190: 190
F191: 191 | R191: 191
F192: 192 | R192: 192
F193: 193 | R193: 193
F194: 194 | G194: =IF(INDEX($A$1:$A$500,MATCH("Spe*",$A$1:$A$500,0)+F194)=0,"",INDEX($A$1:$A$500,MATCH("Spe*",$A$1:$A$500,0)+F194)) ->  | H194: =IF(INDEX($A$1:$A$500,MATCH("Spe*",$A$1:$A$500,0)+F194)=0,"",INDEX($B$1:$B$500,MATCH("Spe*",$A$1:$A$500,0)+F194)) ->  | M194: =IF(G194="",NA(),ROUND(G194,0)) ->  | N194: =IF(H194="",NA(),H194) ->  | R194: 194 | S194: =IF(INDEX($C$1:$C$500,MATCH("Spe*",$C$1:$C$500,0)+R194)=0,"",INDEX($C$1:$C$500,MATCH("Spe*",$C$1:$C$500,0)+R194)) ->  | T194: =IF(INDEX($C$1:$C$500,MATCH("Spe*",$C$1:$C$500,0)+R194)=0,"",INDEX($D$1:$D$500,MATCH("Spe*",$C$1:$C$500,0)+R194)) -> 
F195: =F194+1 -> 195 | R195: =R194+1 -> 195
F196: 196 | R196: 196
F197: 197 | R197: 197
B198: 0 | F198: 198 | R198: 198
B199: 0 | F199: 199 | R199: 199
B200: 0 | F200: 200 | R200: 200
... 85 more rows

Sheet Version 2.2 Lite
